bitfinex/quotes_SOLUSD_20250307
["timestamp","ask_amount","ask_price","bid_price","bid_amount"]
[1741388263488,82.3,141.59,141.54,32.72257505]
[1741388264890,82.3,141.59,141.55,7.0646]
[1741388266467,82.3,141.59,141.55,39.78717505]
[1741388267890,32.72257505,141.62,141.55,39.78717505]
[1741388268288,32.72257505,141.63,141.56,32.72257505]
[1741388269084,32.72257505,141.63,141.57,159.9836]
[1741388269893,32.72257505,141.64,141.57,192.70617505]
[1741388270196,82.3,141.65,141.59,32.72257505]
[1741388270995,82.3,141.65,141.6,32.72257505]
[1741388271377,82.3,141.65,141.61,7.0616]
[1741388274195,82.3,141.69,141.63,32.72257505]
[1741388274394,82.3,141.68,141.63,32.72257505]
[1741388275193,32.72257505,141.67,141.6,34.86137505]
[1741388275384,32.72257505,141.66,141.6,34.86137505]
[1741388275798,32.72257505,141.66,141.6,2.1388]
[1741388275992,82.3,141.67,141.62,32.72257505]
[1741388276374,82.3,141.67,141.61,32.72257505]
[1741388276899,32.72257505,141.65,141.6,2.1388]
[1741388277082,82.3,141.64,141.6,2.1388]
[1741388281910,82.3,141.64,141.59,32.72257505]
[1741388282197,82.333,141.64,141.59,32.72257505]
[1741388283303,82.333,141.64,141.58,32.72257505]
[1741388284399,115.02257505,141.63,141.57,136.45012436]
[1741388284701,82.3,141.62,141.57,136.45012436]
[1741388285594,82.3,141.61,141.59,32.72257505]
[1741388285791,82.3,141.66,141.59,32.72257505]
[1741388285983,82.3,141.65,141.59,32.72257505]
[1741388287398,82.3,141.65,141.59,39.78517505]
[1741388287790,82.3,141.65,141.59,2.72257505]
[1741388288303,115.02257505,141.65,141.6,152.92]
[1741388289294,102.78059676,141.65,141.6,152.92]
[1741388290411,5.1199424,141.64,141.6,159.982]
[1741388290595,5.1199424,141.64,141.6,152.92]
[1741388291514,5.1199424,141.63,141.6,159.982]
[1741388291926,5.1199424,141.63,141.6,152.92]
[1741388292431,5.1199424,141.63,141.6,159.982]
[1741388292591,6.67152819,141.62,141.6,159.982]
[1741388293014,20.08104708,141.62,141.6,152.92]
[1741388293419,27.14234708,141.62,141.6,152.92]
[1741388293597,20.08104708,141.62,141.6,152.92]
[1741388294011,6.67152819,141.61,141.6,152.92]
[1741388294598,11.79147059,141.61,141.6,152.92]
[1741388295420,5.1199424,141.61,141.6,152.92]
[1741388297604,5.1199424,141.61,141.6,180.46269676]
[1741388298418,5.1199424,141.61,141.6,152.92]
[1741388299805,7.0611,141.62,141.6,152.92]
[1741388300006,82.333,141.64,141.6,152.92]
[1741388300499,89.3933,141.64,141.6,152.92]
[1741388302728,82.333,141.64,141.6,159.9821]
[1741388305629,0.033,141.64,141.61,20.48059676]
[1741388306430,0.033,141.64,141.6,198.11799676]
[1741388307714,0.033,141.64,141.61,20.48059676]
[1741388308027,0.033,141.64,141.63,20.48059676]
[1741388308738,82.3,141.7,141.63,45.19279676]
[1741388308931,82.3,141.7,141.65,20.48059676]
[1741388310015,82.3,141.7,141.64,20.48059676]
[1741388310740,82.3,141.7,141.65,20.48059676]
[1741388312337,82.3,141.7,141.66,159.9591]
[1741388314626,82.3,141.7,141.66,177.6069]
[1741388318420,82.333,141.7,141.66,177.6069]
[1741388319643,82.333,141.7,141.66,188.13934346]
[1741388322144,82.333,141.7,141.49,65.73276655]
[1741388322145,70.64964886,141.5,141.49,65.73276655]
[1741388322328,70.64964886,141.5,141.47,17.52957832]
[1741388322329,75.71774886,141.48,141.47,17.52957832]
[1741388322522,100.94964886,141.47,141.35,146.50266234]
[1741388322740,20.48059676,141.44,141.35,146.50266234]
[1741388322942,20.48059676,141.42,141.36,152.86]
[1741388323149,20.48059676,141.42,141.36,102.88116754]
[1741388323446,115.18210725,141.43,141.36,102.88116754]
[1741388323820,115.18210725,141.43,141.36,64.67309382]
[1741388324028,150.73660667,141.43,141.36,64.67309382]
[1741388324248,32.88210725,141.41,141.36,64.67309382]
[1741388324442,82.3,141.4,141.36,64.67309382]
[1741388325749,5.21133438,141.39,141.36,64.67309382]
[1741388326628,133.83175611,141.38,141.36,64.67309382]
[1741388326865,115.18210725,141.37,141.32,1.9465434]
[1741388327158,32.88210725,141.35,141.32,1.9465434]
[1741388327462,82.3,141.34,141.32,1.9465434]
[1741388327632,82.3,141.33,141.32,1.9465434]
[1741388328337,85.79443438,141.33,141.32,1.9465434]
[1741388328729,85.79443438,141.33,141.32,1.4465434]
[1741388332755,80.5831,141.33,141.32,1.4465434]
[1741388339350,80.5831,141.33,141.32,8.5226434]
[1741388340762,80.5831,141.33,141.32,1.4465434]
[1741388342837,80.5831,141.33,141.32,8.5226434]
[1741388343256,80.5831,141.33,141.32,1.4465434]
[1741388344261,80.5831,141.33,141.32,8.5226434]
[1741388345267,20.57785342,141.33,141.32,1.4465434]
[1741388346866,33.84424103,141.33,141.32,1.4465434]
[1741388351477,40.91984103,141.33,141.32,1.4465434]
[1741388354046,33.84424103,141.33,141.32,1.4465434]
[1741388354374,13.26638761,141.33,141.32,1.4465434]
[1741388356948,13.26638761,141.33,141.32,8.5226434]
[1741388357477,13.26638761,141.33,141.32,29.10049682]
[1741388357973,13.26638761,141.33,141.32,1.4465434]
[1741388358172,8.761e-05,141.33,141.32,29.10049682]
[1741388358811,8.761e-05,141.34,141.33,20.57785342]
[1741388358986,0.033,141.4,141.33,194.41570684]
[1741388359287,0.033,141.4,141.38,20.57785342]
[1741388359645,0.033,141.4,141.39,20.57785342]
[1741388360069,0.033,141.4,141.39,29.58805342]
[1741388361791,82.3,141.39,141.36,20.57785342]
[1741388362080,102.87785342,141.38,141.32,1.4465434]
[1741388362291,102.87785342,141.37,141.32,1.4465434]
[1741388362493,82.3,141.37,141.32,1.4465434]
[1741388362676,89.12094693,141.37,141.32,1.4465434]
[1741388363075,82.3,141.36,141.32,1.4465434]
[1741388363565,82.3,141.36,141.33,20.57785342]
[1741388363760,82.3,141.36,141.34,20.57785342]
[1741388364393,6.82094693,141.35,141.32,8.5226434]
[1741388365192,6.82094693,141.35,141.34,20.57785342]
[1741388365363,6.82094693,141.35,141.34,32.88135473]
[1741388365567,6.82094693,141.35,141.34,40.70135473]
[1741388366159,0.033,141.4,141.34,40.70135473]
[1741388366363,0.033,141.4,141.38,32.88135473]
[1741388366865,0.033,141.4,141.38,39.95425473]
[1741388367077,0.033,141.4,141.39,32.88135473]
[1741388369400,0.033,141.4,141.39,39.95395473]
[1741388372288,0.033,141.4,141.39,7.0726]
[1741388374398,0.033,141.4,141.36,24.7593]
[1741388374571,0.033,141.4,141.38,32.88135473]
[1741388375572,81.833,141.42,141.38,32.88135473]
[1741388377198,81.833,141.42,141.38,39.95415473]
[1741388377579,81.833,141.42,141.39,32.88135473]
[1741388378189,81.833,141.42,141.38,39.95415473]
[1741388379685,81.866,141.42,141.38,39.95415473]
[1741388379887,81.866,141.42,141.39,32.88135473]
[1741388381092,81.866,141.42,141.4,32.88135473]
[1741388381324,0.033,141.42,141.41,32.88135473]
[1741388382210,0.033,141.42,141.41,39.95295473]
[1741388385208,0.033,141.42,141.41,7.0716]
[1741388385387,0.033,141.42,141.41,27.60254072]
[1741388388033,0.033,141.42,141.39,7.0726]
[1741388388616,0.033,141.42,141.39,20.53094072]
[1741388389813,0.033,141.42,141.39,27.60304072]
[1741388391394,0.033,141.42,141.4,20.53094072]
[1741388391994,0.033,141.42,141.39,7.0721]
[1741388392195,81.833,141.41,141.39,7.0721]
[1741388392396,81.833,141.41,141.4,20.53094072]
[1741388393227,81.833,141.41,141.4,27.60304072]
[1741388395241,0.033,141.42,141.4,27.60304072]
[1741388395415,0.033,141.42,141.41,20.53094072]
[1741388397332,0.033,141.42,141.41,27.60254072]
[1741388401815,81.833,141.41,141.39,27.60354072]
[1741388402019,81.833,141.41,141.38,27.63374072]
[1741388402531,81.833,141.41,141.39,20.53094072]
[1741388402923,81.833,141.41,141.38,0.03]
[1741388403131,81.833,141.4,141.38,0.03]
[1741388404328,102.36394072,141.39,141.38,0.03]
[1741388405213,116.77654072,141.39,141.38,0.03]
[1741388405414,96.2456,141.39,141.38,0.03]
[1741388405833,34.94354072,141.39,141.38,0.03]
[1741388406036,82.3,141.36,141.34,0.03]
[1741388406355,82.3,141.35,141.34,0.03]
[1741388408939,27.87094072,141.39,141.34,0.03]
[1741388409633,1.97,141.34,141.32,8.5225434]
[1741388411939,1.97,141.34,141.32,1.4465434]
[1741388412144,1.97,141.34,141.32,8.5225434]
[1741388412348,1.97,141.34,141.32,1.4465434]
[1741388412716,9.0451,141.34,141.32,1.4465434]
[1741388413947,82.3,141.33,141.32,1.4465434]
[1741388415127,82.3,141.33,141.32,21.97748412]
[1741388415335,82.3,141.33,141.32,29.05358412]
[1741388416744,1.97,141.34,141.32,35.13138412]
[1741388416956,82.3,141.38,141.33,41.06188144]
[1741388417253,82.3,141.38,141.37,20.53094072]
[1741388418351,82.333,141.42,141.37,27.60454072]
[1741388418555,82.3,141.41,141.39,20.53094072]
[1741388418876,82.3,141.41,141.37,27.60454072]
[1741388419150,82.3,141.4,141.35,27.60504072]
[1741388421025,89.3721,141.4,141.35,20.53094072]
[1741388421252,82.3,141.39,141.35,20.53094072]
[1741388421454,7.0721,141.4,141.34,20.53094072]
[1741388421455,82.3,141.38,141.34,20.53094072]
[1741388423054,82.3,141.37,141.34,20.53094072]
[1741388423233,89.3737,141.37,141.33,20.53094072]
[1741388423434,89.3737,141.37,141.32,21.97748412]
[1741388423636,82.3,141.36,141.32,1.4465434]
[1741388423847,82.3,141.35,141.32,1.4465434]
[1741388425153,89.3749,141.35,141.32,1.4465434]
[1741388425358,102.83094072,141.34,141.31,0.03]
[1741388425563,82.3,141.33,141.31,0.03]
[1741388426567,89.3759,141.33,141.31,0.03]
[1741388427444,89.3759,141.33,141.31,1.3494507]
[1741388428873,82.3,141.32,141.31,1.3494507]
[1741388432352,89.3761,141.32,141.31,1.3494507]
[1741388432671,127.59734072,141.32,141.26,0.03]
[1741388432971,20.53094072,141.3,141.26,0.03]
[1741388433851,7.0776,141.29,141.26,0.03]
[1741388435055,27.60854072,141.29,141.26,0.03]
[1741388435875,27.60954072,141.27,141.26,0.03]
[1741388436772,63.95578958,141.27,141.19,20.53094072]
[1741388437070,20.53094072,141.25,141.19,20.53094072]
[1741388437449,7.26,141.26,141.06,6.598]
[1741388437450,82.3,141.19,141.06,6.598]
[1741388437652,18.64964886,141.16,141.06,6.598]
[1741388437856,7.0846,141.15,141.11,0.03]
[1741388438774,27.61554072,141.15,141.11,0.03]
[1741388438958,45.32714072,141.15,141.11,0.03]
[1741388439561,20.53094072,141.14,141.11,0.03]
[1741388439953,7.0856,141.13,141.11,0.03]
[1741388440357,27.79094072,141.12,141.03,22.52298242]
[1741388440569,20.53094072,141.11,141.04,20.53094072]
[1741388440871,20.53094072,141.1,141.03,22.52298242]
[1741388441278,20.53094072,141.07,141.03,1.9920417]
[1741388441474,82.3,141.06,141.03,1.9920417]
[1741388441772,7.0901,141.04,141.03,1.9920417]
[1741388441968,20.53094072,141.06,141.03,1.9920417]
[1741388442165,34.87964072,141.07,141.03,1.9920417]
[1741388442362,7.26,141.07,141.03,1.9920417]
[1741388442559,20.53094072,141.06,141.03,1.9920417]
[1741388443076,20.53094072,141.05,141.03,1.9920417]
[1741388444055,27.62084072,141.05,141.03,1.9920417]
[1741388444659,31.21619843,141.05,141.03,1.9920417]
[1741388445174,20.53094072,141.04,141.03,1.9920417]
[1741388446054,46.27068958,141.04,141.03,1.9920417]
[1741388446378,96.27068958,141.04,141.03,1.9920417]
[1741388448370,18.64964886,141.04,141.03,1.9920417]
[1741388448683,3.59535771,141.05,141.03,1.62665737]
[1741388448684,24.12629843,141.05,141.03,1.62665737]
[1741388448919,13.686,141.13,141.04,20.53094072]
[1741388449064,7.0861,141.12,141.05,20.53094072]
[1741388449261,20.53094072,141.11,141.05,20.53094072]
[1741388449480,20.53094072,141.12,141.06,20.53094072]
[1741388449695,31.32028336,141.13,141.06,20.53094072]
[1741388450185,31.32028336,141.13,141.07,7.0886]
[1741388450386,82.3,141.12,141.07,7.0886]
[1741388451278,82.3,141.12,141.06,33.01635425]
[1741388452162,115.31635425,141.12,141.06,33.01635425]
[1741388452783,82.3,141.12,141.07,33.01635425]
[1741388452984,82.3,141.11,141.07,33.01635425]
[1741388453288,82.3,141.11,141.08,7.0881]
[1741388454164,82.3,141.11,141.08,40.10445425]
[1741388454674,82.3,141.11,141.08,7.0881]
[1741388454874,82.3,141.11,141.08,40.10445425]
[1741388455277,82.3,141.11,141.06,17.7227]
[1741388455460,82.3,141.11,141.08,33.01635425]
[1741388456165,82.3,141.11,141.05,33.01635425]
[1741388456403,82.3,141.11,141.08,33.01635425]
[1741388457691,82.3,141.11,141.09,7.0876]
[1741388457980,82.3,141.11,141.08,33.01635425]
[1741388458188,82.3,141.11,141.07,40.10485425]
[1741388458378,82.3,141.11,141.06,40.10525425]
[1741388458687,82.3,141.1,141.04,40.10615425]
[1741388458886,82.3,141.09,141.04,40.10615425]
[1741388460289,82.3,141.09,141.05,33.01635425]
[1741388461285,115.31635425,141.08,141.03,1.65665737]
[1741388461489,7.0878,141.09,141.03,1.65665737]
[1741388461490,115.31635425,141.07,141.03,1.65665737]
[1741388461791,82.3,141.06,141.03,1.65665737]
[1741388461971,115.31635425,141.06,141.03,1.65665737]
[1741388462175,122.59635425,141.05,141.03,1.65665737]
[1741388462388,33.01635425,141.04,141.03,1.65665737]
[1741388462992,40.29635425,141.05,141.03,1.65665737]
[1741388463591,7.0901,141.04,141.03,1.65665737]
[1741388463785,14.3698,141.05,141.03,1.65665737]
[1741388464994,47.38615425,141.05,141.03,1.65665737]
[1741388465690,14.3698,141.05,141.03,1.65665737]
[1741388466398,82.3,141.04,141.03,1.65665737]
[1741388466988,47.38615425,141.05,141.03,1.65665737]
[1741388467172,33.01635425,141.04,141.03,1.65665737]
[1741388467688,40.10645425,141.04,141.03,1.65665737]
[1741388468293,7.0901,141.04,141.03,1.65665737]
[1741388469279,43.7780631,141.05,141.03,1.65665737]
[1741388469280,10.76170885,141.05,141.03,1.65665737]
[1741388469480,7.0893,141.06,141.03,1.65665737]
[1741388470705,33.01635425,141.05,141.03,1.65665737]
[1741388471281,20.65677075,141.05,141.03,1.65665737]
[1741388471599,27.74607075,141.06,141.03,1.65665737]
[1741388472796,20.65677075,141.04,140.98,20.65677075]
[1741388473095,20.65677075,141.04,140.97,20.65677075]
[1741388473477,82.3,141.03,140.97,20.65677075]
[1741388474084,7.0911,141.02,140.97,20.65677075]
[1741388474789,7.0911,141.02,140.97,27.75027075]
[1741388474982,89.3908,141.03,140.98,20.65677075]
[1741388475499,82.3,141.03,141.0,20.65677075]
[1741388475704,82.3,141.02,141.0,20.65677075]
[1741388475879,82.3,141.02,141.01,20.65677075]
[1741388476202,82.3,141.09,141.01,27.74837075]
[1741388476391,82.3,141.09,141.07,20.65677075]
[1741388476604,82.333,141.09,141.07,20.65677075]
[1741388477406,82.333,141.09,141.08,33.01430451]
[1741388478483,0.033,141.09,141.08,40.10240451]
[1741388478940,0.033,141.09,141.08,46.20010451]
[1741388479127,0.033,141.09,141.08,53.48010451]
[1741388479420,0.033,141.09,141.08,56.31550451]
[1741388479701,82.3,141.16,141.08,74.03590451]
[1741388479900,82.3,141.16,141.13,33.01430451]
[1741388480481,82.3,141.16,141.14,33.01430451]
[1741388481215,82.3,141.16,141.15,33.01430451]
[1741388481512,89.3802,141.24,141.16,6.0977]
[1741388481685,82.3,141.23,141.19,33.01430451]
[1741388481880,82.3,141.23,141.21,33.01430451]
[1741388482413,0.033,141.26,141.21,33.01430451]
[1741388482585,82.3,141.25,141.22,7.0811]
[1741388483013,82.3,141.25,141.24,33.01430451]
[1741388483311,0.033,141.26,141.24,33.01430451]
[1741388483517,0.033,141.26,141.25,33.01430451]
[1741388484606,0.033,141.26,141.2,39.11200451]
[1741388484607,82.3,141.25,141.2,39.11200451]
[1741388484906,115.31430451,141.24,141.2,6.0977]
[1741388485091,82.3,141.24,141.2,6.0977]
[1741388485289,115.31430451,141.24,141.2,6.0977]
[1741388485498,82.3,141.23,141.2,6.0977]
[1741388485711,82.3,141.23,141.18,33.01430451]
[1741388486593,82.3,141.23,141.19,33.01430451]
[1741388486984,89.3807,141.23,141.19,33.01430451]
[1741388487184,89.3807,141.23,141.18,33.01430451]
[1741388487709,89.3807,141.23,141.17,186.55430451]
[1741388487911,82.3,141.22,141.17,186.55430451]
[1741388488098,82.3,141.22,141.18,33.01430451]
[1741388488921,89.3812,141.22,141.18,33.01430451]
[1741388489110,82.3,141.25,141.21,33.01430451]
[1741388489407,82.3,141.25,141.23,33.01430451]
[1741388489611,82.3,141.25,141.22,33.01430451]
[1741388490711,89.3797,141.25,141.22,33.01430451]
[1741388490911,89.3797,141.25,141.2,33.01430451]
[1741388491095,82.3,141.24,141.18,33.01430451]
[1741388491300,82.3,141.24,141.19,33.01430451]
[1741388491504,82.3,141.24,141.21,33.01430451]
[1741388492084,82.3,141.23,141.16,8.9331]
[1741388492305,82.3,141.23,141.16,41.94740451]
[1741388492306,82.3,141.22,141.16,41.94740451]
[1741388492813,7.0816,141.21,141.16,41.94740451]
[1741388493201,57.80000451,141.21,141.14,33.01430451]
[1741388493412,82.3,141.2,141.15,33.01430451]
[1741388493592,82.3,141.19,141.13,33.01430451]
[1741388493892,82.3,141.19,141.12,9.4634]
[1741388493893,115.31430451,141.18,141.12,6.6273]
[1741388494100,115.31430451,141.17,141.12,6.6273]
[1741388494313,82.3,141.17,141.12,13.7132]
[1741388494489,82.3,141.17,141.16,33.01430451]
[1741388494688,82.3,141.2,141.16,33.01430451]
[1741388494907,82.3,141.2,141.17,33.01430451]
[1741388495093,82.3,141.2,141.16,33.01430451]
[1741388495294,89.3822,141.2,141.16,33.01430451]
[1741388495495,122.39650451,141.2,141.13,33.01430451]
[1741388495705,82.3,141.19,141.13,33.01430451]
[1741388496110,82.3,141.19,141.14,33.01430451]
[1741388496609,82.3,141.19,141.13,33.01430451]
[1741388496811,122.39740451,141.18,141.12,6.6273]
[1741388497002,82.3,141.18,141.13,33.01430451]
[1741388497200,82.3,141.18,141.14,33.01430451]
[1741388498102,82.3,141.18,141.15,33.01430451]
[1741388499910,82.3,141.18,141.15,40.09870451]
[1741388500605,7.26,141.23,141.17,33.01430451]
[1741388500606,82.3,141.23,141.17,33.01430451]
[1741388500807,82.3,141.22,141.18,33.01430451]
[1741388502219,82.3,141.22,141.19,33.01430451]
[1741388502896,82.3,141.22,141.19,40.09640451]
[1741388503617,82.3,141.22,141.17,33.01430451]
[1741388503811,82.3,141.22,141.18,33.01430451]
[1741388503999,82.3,141.22,141.19,33.01430451]
[1741388504995,0.033,141.25,141.2,33.01430451]
[1741388505192,82.333,141.25,141.22,33.01430451]
[1741388505819,82.333,141.25,141.21,33.01430451]
[1741388506017,82.333,141.25,141.2,33.01430451]
[1741388506200,122.42700451,141.25,141.19,40.09650451]
[1741388507121,122.42700451,141.25,141.19,7.0822]
[1741388507320,122.42700451,141.25,141.18,40.09720451]
[1741388507922,33.01430451,141.24,141.18,40.09720451]
[1741388508638,33.01430451,141.19,141.1,24.805]
[1741388508960,33.01430451,141.17,141.1,33.01430451]
[1741388509319,89.56,141.18,141.11,33.01430451]
[1741388509526,82.3,141.18,141.15,33.01430451]
[1741388509703,82.3,141.18,141.16,33.01430451]
[1741388510122,82.3,141.18,141.15,33.01430451]
[1741388511120,82.3,141.18,141.14,33.01430451]
[1741388511519,89.3832,141.18,141.14,33.01430451]
[1741388511720,89.3832,141.18,141.13,33.01430451]
[1741388512410,122.39750451,141.18,141.11,33.01430451]
[1741388512603,82.3,141.17,141.11,33.01430451]
[1741388512807,115.31430451,141.17,141.1,33.01430451]
[1741388513216,89.56,141.17,141.11,33.01430451]
[1741388514038,89.56,141.17,141.12,33.01430451]
[1741388514330,82.3,141.17,141.12,33.01430451]
[1741388514523,89.3839,141.17,141.12,33.01430451]
[1741388515631,89.3839,141.17,141.13,33.01430451]
[1741388519328,82.3,141.21,141.16,33.01430451]
[1741388519632,82.3,141.21,141.18,33.01430451]
[1741388520537,82.3,141.21,141.19,33.01430451]
[1741388520919,82.3,141.21,141.18,33.01430451]
[1741388521629,89.3817,141.21,141.16,39.36430451]
[1741388522035,82.3,141.21,141.17,33.01430451]
[1741388522236,82.3,141.21,141.18,33.01430451]
[1741388524642,89.3818,141.21,141.17,33.01430451]
[1741388525126,89.3818,141.21,141.16,13.4339]
[1741388525328,89.3818,141.21,141.17,33.01430451]
[1741388525860,89.3818,141.21,141.13,160.66]
[1741388526149,115.31430451,141.2,141.13,186.41430451]
[1741388526333,115.31430451,141.2,141.13,193.49970451]
[1741388526519,115.31430451,141.2,141.14,33.01430451]
[1741388526720,82.3,141.2,141.14,33.01430451]
[1741388527343,7.0826,141.19,141.15,33.01430451]
[1741388527522,82.3,141.2,141.16,33.01430451]
[1741388527851,82.3,141.2,141.19,33.01430451]
[1741388528051,3.0552,141.22,141.09,0.03]
[1741388528229,0.4446,141.04,141.01,16.63173723]
[1741388528549,0.4446,141.04,140.91,142.27779202]
[1741388528550,33.01430451,141.02,140.91,142.27779202]
[1741388528842,7.92,141.03,140.97,33.01430451]
[1741388529836,5.20871539,141.02,140.97,33.01430451]
[1741388530344,5.20871539,141.02,141.01,33.01430451]
[1741388531744,13.53436745,141.02,141.01,33.01430451]
[1741388531919,13.53436745,141.02,141.01,40.10590451]
[1741388532118,13.53436745,141.02,141.01,47.98590451]
[1741388532822,13.53436745,141.02,141.01,66.63555337]
[1741388533020,8.67255423,141.08,141.07,33.01430451]
[1741388533234,82.3,141.13,141.07,33.01430451]
[1741388533436,82.3,141.12,141.07,33.01430451]
[1741388534145,82.3,141.12,141.02,7.0911]
[1741388534349,82.3,141.11,141.06,33.01430451]
[1741388534762,33.01430451,141.07,140.98,6.4931]
[1741388535050,115.31430451,141.06,140.99,33.01430451]
[1741388535224,82.3,141.06,141.0,33.01430451]
[1741388535421,82.3,141.06,140.99,33.01430451]
[1741388536038,82.3,141.06,141.0,33.01430451]
[1741388536752,82.3,141.06,141.01,33.01430451]
[1741388536934,82.3,141.06,141.02,33.01430451]
[1741388538033,82.3,141.06,141.05,33.01430451]
[1741388538233,82.3,141.1,141.05,33.01430451]
[1741388538431,82.3,141.09,141.05,33.01430451]
[1741388538634,82.3,141.09,141.04,33.01430451]
[1741388538835,82.3,141.09,141.03,33.01430451]
[1741388539469,82.3,141.09,141.03,40.10480451]
[1741388539654,82.3,141.09,141.06,33.01430451]
[1741388539856,82.3,141.09,141.07,153.5]
[1741388542744,82.3,141.09,141.07,193.60280451]
[1741388544057,82.3,141.09,141.07,186.51430451]
[1741388544235,82.3,141.09,141.07,153.5]
[1741388544755,82.3,141.12,141.07,160.5886]
[1741388545461,82.3,141.12,141.09,33.01430451]
[1741388545665,82.3,141.17,141.12,7.0861]
[1741388545835,82.3,141.16,141.11,40.10070451]
[1741388546744,82.3,141.16,141.12,33.01430451]
[1741388546957,82.3,141.16,141.14,33.01430451]
[1741388547160,82.3,141.16,141.15,33.01430451]
[1741388547460,82.3,141.21,141.15,33.01430451]
[1741388547639,82.3,141.21,141.16,33.01430451]
[1741388547839,82.3,141.21,141.17,7.0836]
[1741388548053,82.3,141.21,141.17,40.09790451]
[1741388548637,0.033,141.24,141.2,33.01430451]
[1741388548861,0.033,141.24,141.21,33.01430451]
[1741388550058,0.033,141.24,141.21,40.09570451]
[1741388551150,0.033,141.24,141.22,33.01430451]
[1741388551637,0.033,141.24,141.21,33.01430451]
[1741388552139,0.033,141.24,141.17,19.7091]
[1741388552140,0.033,141.24,141.22,33.01430451]
[1741388552539,0.033,141.24,141.23,33.01430451]
[1741388553153,57.73572064,141.28,141.23,33.01430451]
[1741388553355,57.73572064,141.27,141.23,33.01430451]
[1741388553554,57.73572064,141.27,141.24,33.01430451]
[1741388553983,57.73572064,141.27,141.24,40.09440451]
[1741388554354,57.73572064,141.3,141.25,33.01430451]
[1741388554660,97.82712515,141.3,141.24,33.01430451]
[1741388555054,5.17180031,141.29,141.24,33.01430451]
[1741388555251,5.17180031,141.29,141.23,33.01430451]
[1741388555652,5.17180031,141.29,141.25,33.01430451]
[1741388556054,5.17180031,141.29,141.25,40.09340451]
[1741388556666,57.73572064,141.3,141.26,33.01430451]
[1741388556858,0.033,141.32,141.28,33.01430451]
[1741388557459,7.1091,141.32,141.27,33.01430451]
[1741388557662,0.033,141.32,141.27,33.01430451]
[1741388558061,0.033,141.32,141.27,40.09250451]
[1741388558255,33.01430451,141.31,141.21,6.0502]
[1741388558459,33.01430451,141.29,141.23,33.01430451]
[1741388558657,33.01430451,141.27,141.21,33.04430451]
[1741388558849,33.01430451,141.25,141.21,0.03]
[1741388559049,0.033,141.28,141.21,0.03]
[1741388559050,33.01430451,141.22,141.21,0.03]
[1741388559959,38.16602249,141.22,141.21,0.03]
[1741388560162,45.24712249,141.22,141.21,0.03]
[1741388560876,5.15171798,141.22,141.21,0.03]
[1741388561375,4.12124618,141.22,141.21,0.03]
[1741388561766,4.12124618,141.22,141.21,33.04430451]
[1741388561957,4.12124618,141.22,141.21,40.12590451]
[1741388563076,33.01430451,141.26,141.21,0.03]
[1741388563261,49.44728735,141.22,141.21,0.03]
[1741388564181,56.52838735,141.22,141.21,0.03]
[1741388564755,80.33250841,141.22,141.12,6.0202]
[1741388565068,49.44728735,141.15,141.08,62.55518735]
[1741388565867,49.44728735,141.17,141.1,49.44728735]
[1741388566072,56.53098735,141.17,141.11,7.0866]
[1741388566279,56.52938735,141.2,141.13,49.44728735]
[1741388566480,53.56554756,141.21,141.14,49.44728735]
[1741388566680,4.11826021,141.21,141.15,49.44728735]
[1741388566983,5.14905996,141.2,141.16,49.44728735]
[1741388567179,9.26732017,141.2,141.17,49.44728735]
[1741388567369,82.3,141.19,141.17,49.44728735]
[1741388568181,82.3,141.19,141.17,56.53048735]
[1741388568382,4.11826021,141.2,141.18,49.44728735]
[1741388568674,82.3,141.23,141.18,49.44728735]
[1741388568675,82.3,141.27,141.19,49.44728735]
[1741388568878,82.3,141.27,141.25,49.44728735]
[1741388569079,0.033,141.28,141.25,49.44728735]
[1741388569384,0.033,141.28,141.26,49.44728735]
[1741388570283,0.033,141.28,141.27,7.0786]
[1741388570583,0.033,141.28,141.27,56.52588735]
[1741388572585,0.033,141.28,141.27,49.44728735]